bitfinex/quotes_ETHUSD_20230109
["timestamp","ask_amount","ask_price","bid_price","bid_amount"]
[1673286380785,0.93456586,1339.3,1339.2,33.55410542]
[1673286380997,0.93456586,1339.3,1339.2,30.88732222]
[1673286382164,2.05333954,1339.3,1339.2,0.066]
[1673286382338,2.05333954,1339.3,1339.1,1.7518557]
[1673286382339,3.17391785,1339.3,1339.1,1.7518557]
[1673286382531,1.11867774,1339.2,1339.1,1.7518557]
[1673286382737,1.11867774,1339.2,1339.1,9.2194857]
[1673286382951,1.11867774,1339.2,1339.1,9.2854857]
[1673286383293,1.11867774,1339.2,1339.1,1.8178557]
[1673286383505,3.23349039,1339.2,1339.1,0.0758557]
[1673286383821,2.11481265,1339.2,1339.1,0.0758557]
[1673286383996,31.08734938,1339.2,1339.1,0.07363215]
[1673286384205,26.61975125,1339.2,1339.1,0.07363215]
[1673286384521,26.48076662,1339.2,1339.1,0.07363215]
[1673286384764,15.24316902,1339.2,1339.1,0.07363215]
[1673286385012,4.97948281,1339.2,1339.1,0.07363215]
[1673286385190,12.38261178,1339.2,1339.1,0.07363215]
[1673286385405,4.97948281,1339.2,1339.1,0.07363215]
[1673286385580,6.59299759,1339.2,1339.1,0.07363215]
[1673286385778,6.65700862,1339.2,1339.1,0.07363215]
[1673286385994,12.44662281,1339.2,1339.1,0.07363215]
[1673286386199,14.12408307,1339.2,1339.1,0.07363215]
[1673286386464,19.91376281,1339.2,1339.1,0.07363215]
[1673286386831,30.17744902,1339.2,1339.1,0.07363215]
[1673286387286,12.44662281,1339.2,1339.1,0.07363215]
[1673286388157,21.59072813,1339.2,1339.1,0.07363215]
[1673286388920,23.25872813,1339.2,1339.1,0.07363215]
[1673286389042,23.39771276,1339.2,1339.1,0.07363215]
[1673286389718,23.25872813,1339.2,1339.1,0.07363215]
[1673286390745,30.72586813,1339.2,1339.1,0.07363215]
[1673286390932,23.25872813,1339.2,1339.1,0.07363215]
[1673286391141,21.58176281,1339.2,1339.1,0.07363215]
[1673286391354,23.25816397,1339.2,1339.1,0.07363215]
[1673286393459,30.72530397,1339.2,1339.1,0.07363215]
[1673286394098,23.25816397,1339.2,1339.1,0.07363215]
[1673286395887,30.72530397,1339.2,1339.1,0.07363215]
[1673286396320,28.48620875,1339.2,1339.1,0.07363215]
[1673286396861,26.80569285,1339.2,1339.1,0.07363215]
[1673286397041,27.92255045,1339.2,1339.1,0.07363215]
[1673286397250,20.45541045,1339.2,1339.1,0.07363215]
[1673286397660,19.33855285,1339.2,1339.1,0.07363215]
[1673286397870,20.45540504,1339.2,1339.1,0.07363215]
[1673286398088,26.80569285,1339.2,1339.1,0.07363215]
[1673286398324,27.92244068,1339.2,1339.1,0.07363215]
[1673286399235,26.80569285,1339.2,1339.1,0.07363215]
[1673286399704,27.92242652,1339.2,1339.1,0.07363215]
[1673286400405,20.45528652,1339.2,1339.1,0.07363215]
[1673286400711,27.92242652,1339.2,1339.1,0.07363215]
[1673286400934,26.80569285,1339.2,1339.1,0.07363215]
[1673286401965,29.04478807,1339.2,1339.1,0.07363215]
[1673286403975,32.84204755,1339.2,1339.1,0.07363215]
[1673286404146,37.30894077,1339.2,1339.1,0.06623605]
[1673286404299,37.30897417,1339.2,1339.1,0.06623605]
[1673286405602,36.63297417,1339.2,1339.1,0.06623605]
[1673286405815,32.86251657,1339.2,1339.1,0.06623605]
[1673286406340,36.63297417,1339.2,1339.1,0.06623605]
[1673286406553,36.64249007,1339.2,1339.1,0.06623605]
[1673286407255,32.87203247,1339.2,1339.1,0.06623605]
[1673286409774,34.96480473,1339.2,1339.1,0.06623605]
[1673286410024,32.87203247,1339.2,1339.1,0.06623605]
[1673286411139,36.64249007,1339.2,1339.1,0.06623605]
[1673286412208,39.64249007,1339.2,1339.1,0.06623605]
[1673286413073,36.84594386,1339.2,1339.1,0.03868202]
[1673286413395,39.63589838,1339.2,1339.1,0.03868202]
[1673286413720,37.51704797,1339.2,1339.1,0.03868202]
[1673286414354,40.3072654,1339.2,1339.1,0.03868202]
[1673286415082,37.51704797,1339.2,1339.1,0.03868202]
[1673286417257,33.74659037,1339.2,1339.1,0.03868202]
[1673286417706,36.53814878,1339.2,1339.1,0.03868202]
[1673286418075,40.30860638,1339.2,1339.1,0.03868202]
[1673286418760,40.87290342,1339.2,1339.1,0.03868202]
[1673286419023,37.51704797,1339.2,1339.1,0.03868202]
[1673286419188,37.51704797,1339.2,1339.1,0.01691409]
[1673286419609,40.87290342,1339.2,1339.1,0.01691409]
[1673286422436,40.87133252,1339.2,1339.1,0.01691409]
[1673286422817,37.09135902,1339.2,1339.1,0.01691409]
[1673286423241,26.26993447,1339.2,1339.1,0.01691409]
[1673286423447,36.95234099,1339.2,1339.1,0.01691409]
[1673286423673,37.09135902,1339.2,1339.1,0.01691409]
[1673286423874,36.95234099,1339.2,1339.1,0.01691409]
[1673286424079,34.42335902,1339.2,1339.1,0.01691409]
[1673286425792,34.28434099,1339.2,1339.1,0.01691409]
[1673286425983,33.86315902,1339.2,1339.1,0.01691409]
[1673286426218,37.63361662,1339.2,1339.1,0.01691409]
[1673286426402,34.43287492,1339.2,1339.1,0.01691409]
[1673286426615,38.20333252,1339.2,1339.1,0.01691409]
[1673286426807,39.54133252,1339.2,1339.1,0.01691409]
[1673286427017,36.18704797,1339.2,1339.1,0.00988809]
[1673286427342,40.08689383,1339.2,1339.1,8.09e-06]
[1673286427903,56.05039383,1339.2,1339.1,8.09e-06]
[1673286428284,56.80675101,1339.2,1339.1,8.09e-06]
[1673286429134,57.58455101,1339.2,1339.1,8.09e-06]
[1673286430816,3.5,1339.1,1339.0,0.13559942]
[1673286431033,47.40162039,1339.1,1339.0,0.13559942]
[1673286431241,44.1107024,1339.1,1339.0,0.13559942]
[1673286431765,40.3402448,1339.1,1339.0,0.13559942]
[1673286431975,34.89889268,1339.1,1339.0,0.13559942]
[1673286432235,42.36659268,1339.1,1339.0,0.13559942]
[1673286432763,39.0122448,1339.1,1339.0,0.13559942]
[1673286432926,42.36659268,1339.1,1339.0,0.13559942]
[1673286433984,39.0122448,1339.1,1339.0,0.11892778]
[1673286434501,42.36659268,1339.1,1339.0,0.11892778]
[1673286435993,39.0122448,1339.1,1339.0,0.11892778]
[1673286436595,42.36659268,1339.1,1339.0,0.11892778]
[1673286437974,38.86659268,1339.1,1339.0,0.11892778]
[1673286438183,38.86877806,1339.1,1339.0,0.11892778]
[1673286438430,38.86878233,1339.1,1339.0,0.11892778]
[1673286438626,36.0725448,1339.1,1339.0,0.11892778]
[1673286439498,39.42689268,1339.1,1339.0,0.11892778]
[1673286439665,36.0725448,1339.1,1339.0,0.11892778]
[1673286439871,43.19958357,1339.1,1339.0,0.11892778]
[1673286440086,39.8430024,1339.1,1339.0,0.06956245]
[1673286441481,43.74284826,1339.1,1339.0,0.06956245]
[1673286441641,45.08084826,1339.1,1339.0,0.06956245]
[1673286443342,53.88920544,1339.1,1339.0,2.45e-06]
[1673286443554,53.88920544,1339.1,1338.9,0.14211534]
[1673286443761,42.56110681,1339.0,1338.9,0.14211534]
[1673286443972,42.06481784,1339.0,1338.9,0.14211534]
[1673286444192,42.06481784,1339.0,1338.9,5.34e-06]
[1673286444386,57.99232088,1339.0,1338.9,5.34e-06]
[1673286444597,54.09247502,1339.0,1338.9,5.34e-06]
[1673286445021,54.09247502,1339.0,1338.8,0.43331279]
[1673286445233,18.93258612,1338.9,1338.8,0.43331279]
[1673286445470,44.40302715,1338.9,1338.8,0.43331279]
[1673286445678,3.5,1338.8,1338.7,0.16117855]
[1673286445909,49.00618006,1338.8,1338.7,0.16117855]
[1673286446120,29.88196,1338.6,1338.5,0.15514655]
[1673286446294,41.7759951,1338.6,1338.5,0.15514655]
[1673286446511,41.91501313,1338.6,1338.5,0.15514655]
[1673286447178,39.11925567,1338.6,1338.5,0.15514655]
[1673286447334,46.65587034,1338.6,1338.5,0.15514655]
[1673286447756,43.86011288,1338.6,1338.5,0.15514655]
[1673286447967,36.38962288,1338.6,1338.5,0.15514655]
[1673286448219,15.50692447,1338.6,1338.5,0.15514655]
[1673286448435,13.2703185,1338.6,1338.5,0.15514655]
[1673286448593,8.53897719,1338.6,1338.5,0.15514655]
[1673286448803,9.65677739,1338.6,1338.5,0.15514655]
[1673286449020,14.12726739,1338.6,1338.5,0.15514655]
[1673286449242,2.85911675,1338.6,1338.5,0.15514655]
[1673286449490,8.5882902,1338.6,1338.5,0.15514655]
[1673286449686,1.13181123,1338.6,1338.5,0.15514655]
[1673286449896,8.5902902,1338.6,1338.5,0.15514655]
[1673286450226,16.12279123,1338.6,1338.5,0.15514655]
[1673286450616,8.65230123,1338.6,1338.5,0.15514655]
[1673286451438,8.65230123,1338.6,1338.5,0.05514655]
[1673286452120,16.12279123,1338.6,1338.5,0.05514655]
[1673286452853,23.59328123,1338.6,1338.5,0.05514655]
[1673286454087,25.27058675,1338.6,1338.5,0.05514655]
[1673286454301,28.78223182,1338.6,1338.5,0.05514655]
[1673286455111,27.1049263,1338.6,1338.5,0.05514655]
[1673286456613,30.90258694,1338.6,1338.5,0.05514655]
[1673286456841,32.57989246,1338.6,1338.5,0.05514655]
[1673286458073,32.71849444,1338.6,1338.5,0.05514655]
[1673286458278,32.57947641,1338.6,1338.5,0.05514655]
[1673286458689,32.71849444,1338.6,1338.5,0.05514655]
[1673286461354,25.24800444,1338.6,1338.5,0.05514655]
[1673286461567,14.12685134,1338.6,1338.5,0.05514655]
[1673286461789,8.65188518,1338.6,1338.5,0.05514655]
[1673286462097,0.06401103,1338.6,1338.5,24.13626655]
[1673286462408,1.11738415,1338.7,1338.5,24.20226655]
[1673286462577,1.11738415,1338.7,1338.6,1.681]
[1673286462786,1.11738415,1338.7,1338.6,4.10252666]
[1673286463243,1.11738415,1338.7,1338.6,1.681]
[1673286464043,1.11738415,1338.7,1338.5,1.73514655]
[1673286464263,10.26479967,1338.7,1338.5,1.73514655]
[1673286464478,1.18139518,1338.7,1338.5,1.73514655]
[1673286464725,2.79468967,1338.7,1338.5,1.73514655]
[1673286465735,1.11738415,1338.6,1338.5,1.73514655]
[1673286465976,1.11738415,1338.6,1338.5,1.39314655]
[1673286466373,8.58787415,1338.6,1338.5,0.05514655]
[1673286466588,8.65188518,1338.6,1338.5,0.05514655]
[1673286466818,1.18139518,1338.6,1338.5,0.05514655]
[1673286467037,1.11738415,1338.6,1338.5,0.05514655]
[1673286468295,2.79468967,1338.6,1338.5,0.05514655]
[1673286468916,17.73566967,1338.6,1338.5,0.05514655]
[1673286469129,2.8587007,1338.6,1338.5,0.05514655]
[1673286469453,2.79468967,1338.6,1338.5,0.05514655]
[1673286469612,10.26517967,1338.6,1338.5,0.05514655]
[1673286469828,17.7996807,1338.6,1338.5,0.05514655]
[1673286470290,10.3291907,1338.6,1338.5,0.05514655]
[1673286471022,25.2701707,1338.6,1338.5,0.05514655]
[1673286471186,1.18139518,1338.6,1338.5,0.05514655]
[1673286471397,1.11738415,1338.6,1338.5,0.05514655]
[1673286471664,8.58787415,1338.6,1338.5,0.05514655]
[1673286471900,8.65188518,1338.6,1338.5,0.05514655]
[1673286472211,10.3291907,1338.6,1338.5,0.05514655]
[1673286472541,2.8587007,1338.6,1338.5,0.05514655]
[1673286472696,10.26517967,1338.6,1338.5,0.05514655]
[1673286472907,10.3291907,1338.6,1338.5,0.05514655]
[1673286473105,17.7996807,1338.6,1338.5,0.05514655]
[1673286473320,21.29733537,1338.6,1338.5,0.05514655]
[1673286474209,20.17995122,1338.6,1338.5,0.05514655]
[1673286474421,27.65044122,1338.6,1338.5,0.05514655]
[1673286474791,27.65044122,1338.6,1338.5,0.05181755]
[1673286475002,20.17995122,1338.6,1338.5,0.05181755]
[1673286476155,29.88704719,1338.6,1338.5,0.05181755]
[1673286477206,28.20974167,1338.6,1338.5,0.05181755]
[1673286478503,32.00740231,1338.6,1338.5,0.05181755]
[1673286479767,34.80315977,1338.6,1338.5,0.05181755]
[1673286480156,34.80523549,1338.6,1338.5,0.05181755]
[1673286480375,34.94425352,1338.6,1338.5,0.05181755]
[1673286480704,9.73702606,1338.6,1338.5,0.05181755]
[1673286480912,6.10035336,1338.6,1338.5,0.05181755]
[1673286481318,30.19074114,1338.6,1338.5,0.05181755]
[1673286481525,15.24976114,1338.6,1338.5,0.05181755]
[1673286481964,22.72025114,1338.6,1338.5,0.05181755]
[1673286482353,21.04133336,1338.6,1338.5,0.05181755]
[1673286483039,28.51182336,1338.6,1338.5,0.05181755]
[1673286483411,32.38957444,1338.6,1338.5,0.05181755]
[1673286483881,25.05810247,1338.6,1338.5,0.05181755]
[1673286484191,24.91908444,1338.6,1338.5,0.05181755]
[1673286484728,25.05810247,1338.6,1338.5,0.05181755]
[1673286484961,35.1853319,1338.6,1338.5,0.05181755]
[1673286485100,35.32434993,1338.6,1338.5,0.05181755]
[1673286485304,32.52859247,1338.6,1338.5,0.05181755]
[1673286485563,27.85385993,1338.6,1338.5,0.05181755]
[1673286485754,3.98223197,1338.6,1338.5,7.52285755]
[1673286485963,1.67953925,1338.6,1338.5,0.11781755]
[1673286486175,1.67953925,1338.6,1338.5,0.05181755]
[1673286486371,3.91822094,1338.6,1338.5,0.05181755]
[1673286487046,1.67953925,1338.6,1338.5,7.52285755]
[1673286487261,1.67953925,1338.6,1338.5,7.58885755]
[1673286487937,2.79938646,1338.6,1338.5,23.86893755]
[1673286488176,2.79938646,1338.6,1338.5,16.39789755]
[1673286488177,1.11984721,1338.6,1338.5,16.39789755]
[1673286488370,1.11984721,1338.6,1338.5,8.92685755]
[1673286488579,1.11984721,1338.6,1338.5,16.39789755]
[1673286488845,2.93477549,1338.9,1338.5,33.35158113]
[1673286488988,3.35490895,1339.0,1338.6,14.46775254]
[1673286488989,0.014,1338.7,1338.6,14.46775254]
[1673286489192,2.85975746,1339.1,1338.7,0.012]
[1673286489422,2.79575746,1339.1,1338.8,1.329]
[1673286489843,4.09306157,1339.2,1338.9,1.33]
[1673286490084,4.09306157,1339.2,1339.0,1.338]
[1673286490085,3.46686157,1339.2,1339.0,1.338]
[1673286490458,0.67110411,1339.2,1339.0,1.338]
[1673286490668,3.46686157,1339.2,1338.9,1.338]
[1673286490923,2.79575746,1339.2,1339.0,0.1338]
[1673286491137,2.79575746,1339.2,1338.9,1.338]
[1673286491322,17.73024746,1339.2,1338.8,1.329]
[1673286491537,29.0612581,1339.2,1338.8,1.329]
[1673286491957,6.29575746,1339.1,1338.7,14.85]
[1673286492138,26.20277064,1339.0,1338.7,13.1938]
[1673286492355,29.90185831,1339.0,1338.7,13.1938]
[1673286492693,35.58961577,1339.0,1338.7,13.1938]
[1673286493087,3.5,1338.9,1338.7,13.1938]
[1673286493451,29.87748,1338.8,1338.7,13.1938]
[1673286493614,29.94348,1338.8,1338.7,0.078]
[1673286493823,29.94348,1338.8,1338.7,0.012]
[1673286494283,22.47411,1338.8,1338.7,0.012]
[1673286494666,15.00474,1338.8,1338.7,0.012]
[1673286494876,22.47411,1338.8,1338.7,0.012]
[1673286496390,0.066,1338.8,1338.7,0.012]
[1673286496565,0.002,1338.8,1338.7,1.485]
[1673286496758,7.46937,1338.8,1338.7,1.485]
[1673286496968,7.53537,1338.8,1338.7,1.485]
[1673286497608,0.066,1338.8,1338.7,1.485]
[1673286497847,22.47341,1338.9,1338.7,1.485]
[1673286498211,7.46937,1338.8,1338.7,1.35]
[1673286498338,15.00474,1338.8,1338.7,1.35]
[1673286498555,7.53537,1338.8,1338.7,1.35]
[1673286498759,0.066,1338.8,1338.7,1.35]
[1673286499075,8.65202424,1338.9,1338.7,1.35]
[1673286499288,16.12106424,1338.9,1338.7,1.6188]
[1673286499492,23.59010424,1338.9,1338.7,1.6188]
[1673286500123,1.18308424,1338.9,1338.7,1.6188]
[1673286500333,1.11708424,1338.9,1338.7,1.6188]
[1673286500651,8.58608424,1338.9,1338.7,1.6188]
[1673286500901,8.65208424,1338.9,1338.7,1.6188]
[1673286501327,16.12108424,1338.9,1338.7,1.6188]
[1673286501639,8.65208424,1338.9,1338.7,1.6188]
[1673286501864,1.18308424,1338.9,1338.7,24.0285]
[1673286502019,1.11708424,1338.9,1338.8,5.40285]
[1673286502228,3.41916515,1339.0,1338.8,24.87696]
[1673286502439,3.35316515,1339.0,1338.8,17.40759]
[1673286502654,3.35316515,1339.0,1338.8,9.93822]
[1673286502882,10.82142515,1339.0,1338.8,9.93822]
[1673286503104,1.74338424,1339.0,1338.8,17.40759]
[1673286503434,3.35316515,1339.0,1338.9,0.99972907]
[1673286503599,1.67738424,1339.0,1338.9,0.99972907]
[1673286503812,10.82141515,1339.0,1338.9,0.99972907]
[1673286504033,10.88741515,1339.0,1338.7,23.82503]
[1673286504890,18.35566515,1339.0,1338.7,23.82503]
[1673286505644,1.11708424,1338.9,1338.7,0.078]
[1673286505852,1.11708424,1338.9,1338.7,0.012]
[1673286506171,1.11708424,1338.9,1338.7,7.48187]
[1673286506384,8.58597424,1338.9,1338.7,0.078]
[1673286506698,8.65189424,1338.9,1338.7,0.012]
[1673286507587,25.26529515,1338.9,1338.7,0.012]
[1673286508371,1.11708424,1338.8,1338.7,0.012]
[1673286509609,10.32767515,1338.9,1338.7,0.012]
[1673286510028,25.26545515,1338.9,1338.7,0.012]
[1673286510391,1.11708424,1338.8,1338.7,0.012]
[1673286510721,8.58645424,1338.8,1338.7,0.012]
[1673286510939,8.65245424,1338.8,1338.7,0.012]
[1673286511231,1.18308424,1338.8,1338.7,0.012]
[1673286511422,1.11708424,1338.8,1338.7,0.012]
[1673286512038,8.58645424,1338.8,1338.7,0.012]
[1673286512283,8.65245424,1338.8,1338.7,0.012]
[1673286512812,1.18308424,1338.8,1338.7,0.012]
[1673286513130,1.11708424,1338.8,1338.7,0.012]
[1673286513339,8.58645424,1338.8,1338.7,0.012]
[1673286513503,1.18308424,1338.8,1338.7,0.012]
[1673286513866,1.11708424,1338.8,1338.7,0.012]
[1673286514055,8.58645424,1338.8,1338.7,0.012]
[1673286514234,1.18308424,1338.8,1338.7,0.012]
[1673286514439,1.11708424,1338.8,1338.7,0.012]
[1673286515074,10.32767515,1338.9,1338.7,0.012]
[1673286516141,1.11708424,1338.8,1338.7,0.012]
[1673286519413,2.79286515,1338.8,1338.7,0.012]
[1673286520380,2.79286515,1338.8,1338.7,0.00903173]
[1673286520551,1.11708424,1338.8,1338.7,0.00903173]
[1673286521301,2.79286515,1338.8,1338.7,0.00903173]
[1673286521526,1.11708424,1338.8,1338.7,0.00903173]
[1673286521712,2.79286515,1338.8,1338.7,0.00903173]
[1673286522580,10.26223515,1338.8,1338.7,0.00903173]
[1673286522745,10.32823515,1338.8,1338.7,0.00903173]
[1673286522959,2.85886515,1338.8,1338.7,0.00903173]
[1673286523183,2.79286515,1338.8,1338.7,0.00903173]
[1673286525689,10.26223515,1338.8,1338.7,0.00903173]
[1673286525898,10.32823515,1338.8,1338.7,0.00903173]
[1673286526111,2.85886515,1338.8,1338.7,0.00903173]
[1673286526457,2.79286515,1338.8,1338.7,0.00903173]
[1673286528119,1.67578091,1338.8,1338.7,0.00903173]
[1673286528993,2.79482893,1338.8,1338.7,0.00903173]
[1673286529181,2.79483265,1338.8,1338.7,0.00903173]
[1673286529392,2.79483021,1338.8,1338.7,0.00903173]
[1673286530206,1.67578091,1338.8,1338.7,0.00903173]
[1673286531300,3.91021504,1338.8,1338.7,0.00903173]
[1673286531517,1.67578091,1338.8,1338.7,0.00903173]
[1673286532097,3.91021504,1338.8,1338.7,0.00903173]
[1673286532952,3.91433494,1338.8,1338.7,0.00903173]
[1673286537826,10.26512746,1338.8,1338.7,0.00903173]
[1673286538038,27.3853641,1338.8,1338.7,0.00903173]
[1673286538201,27.38924293,1338.8,1338.7,0.00903173]
[1673286539769,31.61466728,1338.8,1338.7,0.00903173]
[1673286539935,32.30585055,1338.8,1338.7,0.00903173]
[1673286540670,32.30585055,1338.8,1338.7,0.00567321]
[1673286541352,35.6607595,1338.8,1338.7,0.00567321]
[1673286542041,24.83648055,1338.8,1338.7,0.00567321]
[1673286542558,28.1913895,1338.8,1338.7,0.00567321]
[1673286542942,27.6309895,1338.8,1338.7,0.00567321]
[1673286543140,27.6405054,1338.8,1338.7,0.00567321]
[1673286543593,35.1098754,1338.8,1338.7,0.00567321]
[1673286543929,31.75496645,1338.8,1338.7,0.00567321]
[1673286544354,32.31536645,1338.8,1338.7,0.00567321]
[1673286545187,36.07219915,1338.8,1338.7,0.00567321]
[1673286545394,39.4271081,1338.8,1338.7,0.00567321]
[1673286545573,35.6702754,1338.8,1338.7,0.00567321]
[1673286545991,39.4271081,1338.8,1338.7,0.00567321]
[1673286546212,35.6702754,1338.8,1338.7,0.00567321]
[1673286546725,43.6918754,1338.8,1338.7,0.00567321]
[1673286546935,44.40821045,1338.8,1338.7,0.00567321]
[1673286547175,48.84504315,1338.8,1338.7,0.00567321]
[1673286547772,45.08821045,1338.8,1338.7,0.00567321]
[1673286548882,48.84504315,1338.8,1338.7,0.00567321]
[1673286549043,45.08821045,1338.8,1338.7,0.00567321]
[1673286549252,48.84504315,1338.8,1338.7,0.00567321]
[1673286549514,51.84504315,1338.8,1338.7,0.00567321]
[1673286550460,48.08821045,1338.8,1338.7,0.00567321]
[1673286551710,51.84504315,1338.8,1338.7,0.00567321]
[1673286555801,48.08821045,1338.8,1338.7,0.00567321]
[1673286556008,39.9025054,1338.8,1338.7,0.00567321]
[1673286556330,47.3718754,1338.8,1338.7,0.00567321]
[1673286556539,44.01696645,1338.8,1338.7,0.00567321]
[1673286556849,46.81162369,1338.8,1338.7,0.00567321]
[1673286557063,31.87287391,1338.8,1338.7,0.00567321]
[1673286557275,39.34224391,1338.8,1338.7,0.00567321]
[1673286557932,31.87287391,1338.8,1338.7,0.00567321]
[1673286558252,39.34224391,1338.8,1338.7,0.00567321]
[1673286558463,31.87287391,1338.8,1338.7,0.00567321]
[1673286558830,36.54759645,1338.8,1338.7,0.00567321]
[1673286559039,44.01696645,1338.8,1338.7,0.00567321]
[1673286559297,47.3718754,1338.8,1338.7,0.00567321]
[1673286560035,44.01696645,1338.8,1338.7,0.00567321]
[1673286560663,47.3718754,1338.8,1338.7,0.00567321]
[1673286560827,36.54759645,1338.8,1338.7,0.00567321]
[1673286561035,31.87271741,1338.8,1338.7,0.00567321]
[1673286561297,39.34208741,1338.8,1338.7,0.00567321]
[1673286561613,46.81145741,1338.8,1338.7,0.00567321]
[1673286562386,44.01696645,1338.8,1338.7,0.00567321]
[1673286562929,46.81152107,1338.8,1338.7,0.00567321]
[1673286563139,44.01696645,1338.8,1338.7,0.00567321]
[1673286563665,47.3718754,1338.8,1338.7,0.00567321]
[1673286565081,44.01696645,1338.8,1338.7,0.00567321]
[1673286565293,44.01696645,1338.8,1338.7,0.00318728]
[1673286565451,47.3718754,1338.8,1338.7,0.00318728]
[1673286565788,44.01696645,1338.8,1338.7,0.00318728]
[1673286567722,46.81185918,1338.8,1338.7,0.00318728]
[1673286568030,47.3718754,1338.8,1338.7,0.00318728]
[1673286568815,46.68069213,1338.8,1338.7,0.00318728]
[1673286569025,50.43752483,1338.8,1338.7,0.00318728]
[1673286569270,48.76361588,1338.8,1338.7,0.00318728]
[1673286569701,53.39794629,1338.8,1338.7,0.00318728]
[1673286571451,49.47995093,1338.8,1338.7,0.00318728]
[1673286572196,61.21994629,1338.8,1338.7,0.00318728]
[1673286572389,61.44994629,1338.8,1338.7,0.00318728]
[1673286572742,61.44994629,1338.8,1338.5,0.05181755]
[1673286572918,13.4559995,1338.6,1338.5,0.05181755]
[1673286573260,43.4039595,1338.6,1338.5,0.05181755]
[1673286573668,35.9334695,1338.6,1338.5,0.05181755]
[1673286574438,34.2524695,1338.6,1338.5,0.05181755]
[1673286574971,34.94953051,1338.6,1338.5,0.05181755]
[1673286575155,23.57560232,1338.6,1338.5,0.05181755]
[1673286575331,35.72024346,1338.6,1338.5,0.05181755]
[1673286575753,39.07584638,1338.6,1338.5,0.05181755]
[1673286575963,35.72024346,1338.6,1338.5,0.05181755]
[1673286576175,39.07584638,1338.6,1338.5,0.05181755]
[1673286576595,35.72024346,1338.6,1338.5,0.05181755]
[1673286576821,39.07584638,1338.6,1338.5,0.05181755]
[1673286580316,42.07584638,1338.6,1338.5,0.05181755]
[1673286580541,38.72024346,1338.6,1338.5,0.05181755]
[1673286580855,42.07851102,1338.6,1338.5,0.03559064]
[1673286581582,45.83534847,1338.6,1338.5,0.03559064]
[1673286581765,48.78340657,1338.6,1338.5,0.03559064]
[1673286582311,44.86541121,1338.6,1338.5,0.03559064]
[1673286582532,48.22265072,1338.6,1338.5,0.03559064]
[1673286583771,44.46582061,1338.6,1338.5,0.03559064]
[1673286583980,44.47533651,1338.6,1338.5,0.03559064]
[1673286584200,48.23178966,1338.6,1338.5,0.03559064]
[1673286585734,48.23065322,1338.6,1338.5,0.03559064]
[1673286586949,49.91165322,1338.6,1338.5,0.03559064]
[1673286588640,46.15633651,1338.6,1338.5,0.03559064]
[1673286588986,49.9112771,1338.6,1338.5,0.03559064]
[1673286590069,46.554035,1338.6,1338.5,0.03559064]
[1673286590829,46.554035,1338.6,1338.5,0.02445519]
[1673286591049,51.03253036,1338.6,1338.5,0.02445519]
[1673286591354,58.85453036,1338.6,1338.5,5.19e-06]
[1673286591515,58.85453036,1338.6,1338.4,0.16336477]
[1673286591721,33.35553206,1338.5,1338.4,0.16336477]
[1673286592044,55.83465206,1338.5,1338.4,0.16336477]
[1673286592248,56.55098711,1338.5,1338.4,0.16336477]
[1673286592724,56.54700156,1338.5,1338.4,0.16336477]
[1673286593943,56.54700156,1338.5,1338.2,0.17108936]
[1673286593944,3.5,1338.4,1338.2,0.17108936]
[1673286594296,38.50455736,1338.3,1338.2,0.17108936]
[1673286594512,38.57055736,1338.3,1338.2,0.17108936]
[1673286594879,41.57055736,1338.3,1338.2,0.17108936]
[1673286595661,42.84749241,1338.3,1338.2,0.17108936]
[1673286596064,42.28689241,1338.3,1338.2,0.17108936]
[1673286597139,8.12558408,1338.3,1338.2,0.17108936]
[1673286597353,5.54016865,1338.3,1338.2,0.17108936]
[1673286597506,20.48448865,1338.3,1338.2,0.17108936]
[1673286597718,27.95664865,1338.3,1338.2,0.17108936]
[1673286597959,30.19206408,1338.3,1338.2,0.17108936]
[1673286598397,22.71990408,1338.3,1338.2,0.17108936]
[1673286598611,20.48448865,1338.3,1338.2,0.17108936]
[1673286598767,30.25506408,1338.3,1338.2,0.17108936]
[1673286598979,34.30737816,1338.3,1338.2,0.17108936]
[1673286600391,32.63087015,1338.3,1338.2,0.17108936]
[1673286601352,34.30762095,1338.3,1338.2,0.17108936]
[1673286601506,32.63087015,1338.3,1338.2,0.17108936]
[1673286602454,28.57855607,1338.3,1338.2,0.17108936]
[1673286602887,1.80590127,1338.3,1338.2,1.85008936]
[1673286603114,1.80590127,1338.3,1338.2,3.53108936]
[1673286603115,1.18091054,1338.3,1338.2,3.53108936]
[1673286603318,1.18091054,1338.3,1338.2,5.10437502]
[1673286603544,1.18091054,1338.3,1338.2,12.64309502]
[1673286604182,0.063,1338.3,1338.2,12.64309502]
[1673286604344,2.86081181,1338.5,1338.3,3.5]
[1673286604551,2.86081181,1338.5,1338.4,1.681]
[1673286604552,2.79481181,1338.5,1338.4,1.681]
[1673286604794,2.79481181,1338.5,1338.4,1.8491]
[1673286604795,2.79485892,1338.5,1338.4,1.8491]
[1673286605604,1.11795765,1338.5,1338.4,16.7923]
[1673286605915,1.11795765,1338.5,1338.4,1.9151]
[1673286606130,1.11795765,1338.5,1338.4,1.8491]
[1673286606551,2.79485892,1338.5,1338.4,1.8491]
[1673286607072,2.79485892,1338.5,1338.4,9.3207]
[1673286607282,2.79485892,1338.5,1338.4,16.8583]
[1673286608012,2.79485892,1338.5,1338.4,9.3867]
[1673286608541,2.79485892,1338.5,1338.4,16.8583]
[1673286608776,1.67690127,1338.5,1338.4,0.2341]
[1673286608962,1.67690127,1338.5,1338.4,1.8542461]
[1673286609317,1.88115033,1338.6,1338.4,23.4752]
[1673286609643,1.81515033,1338.6,1338.4,27.8918]
[1673286610904,1.81515033,1338.6,1338.5,3.34]
[1673286611223,1.11808932,1338.6,1338.5,3.34]
[1673286611566,1.11808932,1338.6,1338.5,10.97033341]
[1673286611750,1.11808932,1338.6,1338.5,11.03633341]
[1673286612274,1.11808932,1338.6,1338.5,10.70333341]
[1673286612645,1.11808932,1338.6,1338.5,18.17437341]
[1673286613525,1.11808932,1338.6,1338.5,10.70333341]
[1673286613899,1.11808932,1338.6,1338.5,18.17437341]
[1673286614110,1.11808932,1338.6,1338.5,25.64541341]
[1673286614338,1.11808932,1338.6,1338.5,3.23229341]
[1673286614589,1.11808932,1338.6,1338.5,10.63733341]
[1673286614743,1.11808932,1338.6,1338.5,10.70333341]
[1673286615165,1.11808932,1338.6,1338.5,18.17437341]
[1673286615481,1.11808932,1338.6,1338.5,25.64541341]
[1673286616886,1.11808932,1338.6,1338.5,10.70333341]
[1673286617275,1.12008932,1338.6,1338.5,10.70133341]
[1673286617490,1.11808932,1338.6,1338.5,10.70333341]
[1673286617701,1.70590127,1338.7,1338.5,10.70333341]
[1673286617702,2.82399059,1338.7,1338.5,10.70333341]
[1673286617897,2.82399059,1338.7,1338.6,1.07033334]
[1673286618104,1.14708932,1338.7,1338.6,9.87782334]
[1673286618351,1.14708932,1338.7,1338.6,26.22280334]
[1673286619170,0.029,1338.7,1338.6,26.22280334]
[1673286628041,0.029,1338.7,1338.6,26.22052601]